bitfinex-derivatives/quotes_ETHF0:USTF0_20250816
["timestamp","ask_amount","ask_price","bid_price","bid_amount"]
[1755329708170,1.10915983,4450.8,4450.7,1.4791]
[1755329708466,0.12873883,4450.8,4450.7,1.4791]
[1755329709174,1.07813883,4450.8,4450.7,1.4791]
[1755329709374,1.27903883,4450.8,4450.7,1.1094]
[1755329709771,1.48113883,4450.8,4450.7,1.1094]
[1755329710169,0.91353883,4450.8,4450.7,1.4791]
[1755329710368,1.07813883,4450.8,4450.7,1.4791]
[1755329710569,1.27903883,4450.8,4450.7,1.4791]
[1755329710770,0.12873883,4450.8,4450.7,1.4791]
[1755329712175,1.07813883,4450.8,4450.7,1.4791]
[1755329712776,0.36963883,4450.8,4450.7,1.4791]
[1755329712972,0.12873883,4450.8,4450.7,1.4791]
[1755329713571,0.00496456,4450.8,4450.7,1.4791]
[1755329715878,0.00496456,4450.8,4450.7,22.0931]
[1755329716570,0.00496456,4450.8,4450.7,62.8931]
[1755329717578,0.00496456,4450.8,4450.7,63.34213]
[1755329717776,0.00496456,4450.8,4450.7,62.8931]
[1755329717977,0.00496456,4450.8,4450.7,42.2791]
[1755329718178,0.00496456,4450.8,4450.7,62.8921]
[1755329720885,0.00496456,4450.8,4450.7,42.2791]
[1755329721181,0.00496456,4450.8,4450.7,62.8941]
[1755329721374,1.86402439,4452.5,4451.7,0.2556]
[1755329721577,0.71829411,4452.4,4452.3,0.5924]
[1755329721777,0.5946,4452.2,4452.1,20.624]
[1755329721984,1.1782,4452.1,4452.0,3.5412]
[1755329722185,1.50479411,4452.1,4452.0,3.7968]
[1755329722385,1.50479411,4452.1,4452.0,3.4634]
[1755329722686,0.5946,4451.6,4451.5,0.2588]
[1755329722987,1.3811,4451.5,4451.4,3.2078]
[1755329723391,1.3811,4451.5,4451.4,3.4634]
[1755329724186,0.9766,4451.5,4451.4,4.6722]
[1755329725185,0.8055,4451.5,4451.4,4.6722]
[1755329726198,0.9766,4452.0,4451.9,0.5924]
[1755329726398,1.3017898,4452.0,4451.9,1.1068]
[1755329726595,1.1001898,4452.0,4451.9,4.3146]
[1755329726803,1.1001898,4452.0,4451.9,4.6722]
[1755329726992,0.9766,4452.0,4451.9,4.6722]
[1755329727394,0.2486,4452.0,4451.9,4.6722]
[1755329727598,1.1782,4452.0,4451.9,4.6722]
[1755329728096,1.1782,4452.0,4451.9,4.3146]
[1755329728302,1.3811,4452.0,4451.9,3.2078]
[1755329728498,1.3811,4451.5,4451.4,0.2556]
[1755329728800,2.84062439,4451.5,4451.4,0.2556]
[1755329729000,1.3811,4451.5,4451.4,0.6792]
[1755329729199,1.1782,4451.5,4451.4,1.1068]
[1755329729599,0.382,4452.5,4451.5,0.2556]
[1755329729801,0.2486,4451.9,4451.8,3.8002]
[1755329730099,0.2016,4452.3,4451.8,3.8002]
[1755329730396,3.5898,4453.1,4452.2,1.45952439]
[1755329730597,0.7181202,4453.0,4452.9,0.259]
[1755329730795,1.5046202,4453.0,4452.9,0.2556]
[1755329730997,0.5055202,4453.0,4452.9,0.5924]
[1755329731192,0.1,4453.2,4452.9,0.5924]
[1755329731501,0.1,4453.2,4453.1,4.6722]
[1755329731705,0.9055,4453.2,4453.1,25.3622]
[1755329732005,1.2782,4453.2,4453.1,25.3622]
[1755329732304,1.2782,4453.2,4453.0,3.2078]
[1755329732305,1.3811,4453.1,4453.0,3.2078]
[1755329732906,1.50451868,4453.1,4453.0,3.2078]
[1755329733207,1.50451868,4453.1,4452.2,0.2588]
[1755329733409,0.5946,4452.3,4452.2,41.2236]
[1755329733702,1.1782,4452.3,4452.2,0.8478]
[1755329734698,1.1782,4452.3,4452.2,1.4644]
[1755329735597,1.1782,4452.3,4452.2,0.4204]
[1755329735795,1.1782,4452.2,4452.0,3.2078]
[1755329736001,1.1782,4452.2,4452.1,1.1068]
[1755329736300,1.1782,4452.2,4452.0,3.2078]
[1755329736606,0.5946,4452.2,4452.1,1.4644]
[1755329737099,0.9766,4452.2,4452.1,1.4644]
[1755329737311,0.7865,4452.1,4451.4,3.4634]
[1755329737608,1.1782,4451.5,4451.4,4.3146]
[1755329739502,0.9766,4451.5,4451.4,4.6722]
[1755329739699,0.728,4452.2,4452.1,0.3334]
[1755329740005,2.76129619,4452.2,4452.1,0.8478]
[1755329740404,2.96419619,4452.2,4452.1,0.4204]
[1755329740604,2.96419619,4452.2,4452.1,0.2556]
[1755329740997,0.2016,4452.1,4451.8,0.2556]
[1755329741207,1.1782,4451.5,4451.4,3.4634]
[1755329741896,1.1782,4451.5,4451.4,3.6282]
[1755329742094,1.1782,4451.5,4451.4,4.3146]
[1755329742299,1.1782,4451.5,4451.4,4.6722]
[1755329742500,0.6306,4451.9,4451.8,0.5924]
[1755329742703,0.1236653,4451.9,4451.8,1.4644]
[1755329743908,1.3018653,4451.9,4451.8,1.4644]
[1755329744304,1.5047653,4451.9,4451.4,3.4666]
[1755329744505,0.5946,4451.6,4451.5,0.2556]
[1755329744701,1.3811,4451.6,4451.5,0.2556]
[1755329745104,0.2016,4452.1,4451.6,0.3576]
[1755329745306,0.9766,4452.1,4452.0,1.4644]
[1755329745506,0.12371762,4452.1,4452.0,1.4644]
[1755329745705,0.382,4452.9,4452.0,3.8002]
[1755329745906,2.05412439,4452.7,4452.6,0.3334]
[1755329746108,3.2078,4454.5,4453.1,0.8512]
[1755329746413,0.2749,4453.2,4453.1,4.6722]
[1755329746710,0.1,4453.2,4453.1,4.6722]
[1755329747511,1.3309,4453.2,4453.1,4.6722]
[1755329748113,0.2749,4453.2,4453.1,4.6722]
[1755329748717,0.9057,4453.2,4453.1,4.6722]
[1755329748909,1.3213,4453.2,4453.1,4.6722]
[1755329749105,1.5228,4453.2,4453.1,3.2078]
[1755329750711,0.1,4453.2,4453.1,3.2078]
[1755329751014,0.1,4453.2,4453.1,4.6595]
[1755329753219,2.527,4454.0,4453.1,6.2078]
[1755329753418,0.2588,4455.6,4454.0,0.0613]
[1755329753714,0.5867,4454.9,4454.8,3.3059]
[1755329753919,1.4722,4454.9,4454.8,3.3059]
[1755329754115,1.45952439,4455.6,4454.8,3.2078]
[1755329754320,2.93172439,4454.9,4454.8,3.2078]
[1755329754516,1.4722,4454.9,4454.8,3.2078]
[1755329754721,1.4722,4454.9,4454.2,3.2078]
[1755329754722,1.2277,4454.9,4454.2,3.2078]
[1755329754922,0.2445,4454.8,4454.2,3.2078]
[1755329755118,1.1477,4454.3,4454.2,3.2078]
[1755329755319,0.8855,4454.3,4454.2,3.2078]
[1755329755525,0.8855,4454.2,4453.6,3.2078]
[1755329755720,0.641,4454.2,4453.7,40.8]
[1755329755927,0.8855,4454.7,4453.7,40.8]
[1755329756126,0.8855,4454.2,4453.6,3.2078]
[1755329756622,0.8855,4454.9,4454.1,3.2078]
[1755329756926,1.08037636,4454.8,4454.1,3.2078]
[1755329757223,0.5033,4454.6,4454.1,3.2078]
[1755329757723,0.2445,4454.2,4454.1,3.2078]
[1755329757926,4.27055851,4455.8,4454.1,3.2078]
[1755329757927,0.5033,4454.9,4454.1,3.2078]
[1755329758120,0.8855,4455.6,4454.6,3.2078]
[1755329758320,1.1984748,4455.5,4454.6,3.2078]
[1755329758523,0.8855,4455.3,4454.6,3.2078]
[1755329758820,0.3822,4454.8,4454.6,3.2078]
[1755329759021,0.5033,4454.7,4454.6,3.2078]
[1755329759325,0.2445,4455.0,4454.6,3.2078]
[1755329759519,0.2445,4455.0,4454.7,0.0613]
[1755329759715,3.2078,4455.7,4454.6,3.2078]
[1755329759920,0.8855,4455.6,4455.5,3.2078]
[1755329760720,1.00366049,4455.6,4455.5,3.2078]
[1755329760922,0.8855,4455.6,4455.5,3.2078]
[1755329761219,1.00366036,4455.6,4455.5,3.2078]
[1755329761518,0.8855,4455.6,4455.5,3.2078]
[1755329763224,3.38558016,4457.6,4455.5,10.43927723]
[1755329763430,0.641,4457.4,4456.5,3.2078]
[1755329763623,0.641,4457.3,4456.5,3.2078]
[1755329763825,0.75888401,4457.2,4456.5,3.2078]
[1755329764125,0.641,4456.9,4456.5,3.2078]
[1755329764332,0.641,4456.9,4455.9,3.2078]
[1755329764523,0.641,4457.4,4456.4,3.2078]
[1755329764723,4.23147723,4457.5,4456.4,3.2078]
[1755329764724,0.641,4457.2,4456.4,3.2078]
[1755329764919,4.23147723,4457.0,4455.9,3.2078]
[1755329765119,0.2445,4456.7,4455.9,3.2078]
[1755329765324,0.3822,4456.4,4455.9,3.2078]
[1755329765528,0.8855,4456.4,4455.9,3.2078]
[1755329765733,4.23147723,4456.5,4455.3,3.2078]
[1755329766029,0.8855,4456.0,4455.3,3.2078]
[1755329766225,0.2445,4455.9,4455.3,3.2078]
[1755329766932,0.2445,4455.9,4455.8,3.2078]
[1755329767231,0.5033,4455.9,4455.8,3.2078]
[1755329767626,0.8855,4455.9,4455.8,3.2078]
[1755329769236,4.23147723,4456.0,4455.2,3.2078]
[1755329769532,0.6267,4455.4,4455.2,3.2078]
[1755329769729,0.8855,4455.3,4455.2,3.2078]
[1755329770325,0.2445,4455.3,4455.2,3.2078]
[1755329770531,0.6267,4455.7,4455.2,3.2078]
[1755329770735,0.2588,4455.6,4455.2,3.2078]
[1755329770928,0.641,4455.4,4455.2,3.2078]
[1755329771132,0.2445,4455.5,4455.2,3.2078]
[1755329771133,0.8855,4455.3,4455.2,3.2078]
[1755329771742,0.5033,4455.3,4455.2,3.2078]
[1755329772039,0.8855,4455.3,4455.2,3.2078]
[1755329774940,4.23147723,4455.7,4454.6,3.2078]
[1755329774941,0.8855,4455.6,4454.6,3.2078]
[1755329775144,0.5033,4455.3,4454.6,3.2078]
[1755329775337,0.8855,4454.9,4454.6,3.2078]
[1755329775638,0.2445,4454.7,4454.6,3.2078]
[1755329775838,0.5033,4454.7,4454.6,3.2078]
[1755329776544,0.663,4454.7,4454.6,3.3059]
[1755329777040,1.4722,4454.7,4454.6,3.2078]
[1755329778741,1.4722,4454.7,4454.6,3.3066]
[1755329779844,0.5033,4454.7,4454.6,3.3077]
[1755329781349,0.2412,4454.7,4454.6,3.3077]
[1755329781640,0.3925,4455.2,4454.6,3.3077]
[1755329781943,0.9853,4454.9,4454.8,0.0999]
[1755329782243,0.9853,4454.9,4454.8,3.2078]
[1755329782438,1.4789,4454.9,4454.8,3.2078]
[1755329783243,1.59737955,4454.9,4454.8,3.2078]
[1755329785437,1.59737955,4454.9,4454.8,3.3077]
[1755329785634,0.35967955,4454.9,4454.8,3.3077]
[1755329786237,0.61207955,4454.9,4454.8,3.3077]
[1755329786941,0.78387955,4454.9,4454.8,3.3077]
[1755329787143,1.20487955,4454.9,4454.8,3.3077]
[1755329788439,0.11847955,4454.9,4454.8,3.3077]
[1755329788638,0.2412,4455.5,4454.8,4.81974602]
[1755329788839,1.4789,4455.5,4455.4,3.2078]
[1755329789139,1.59741674,4455.5,4455.4,3.2078]
[1755329791444,1.20491674,4455.5,4455.4,3.3077]
[1755329791640,1.59741674,4455.5,4455.4,3.3077]
[1755329792641,1.59741674,4455.5,4455.4,3.3066]
[1755329792841,1.59741674,4455.5,4455.4,3.2078]
[1755329793241,1.5974135,4455.5,4455.4,3.3066]
[1755329795445,1.5974135,4455.5,4455.4,3.3077]
[1755329795851,0.1185135,4455.5,4455.4,4.75794602]
[1755329796045,0.2412,4456.1,4455.4,4.81974602]
[1755329796243,0.11859091,4456.0,4455.5,0.0618]
[1755329796547,0.2412,4456.0,4455.9,0.0999]
[1755329796845,0.35977043,4456.0,4455.9,0.0999]
[1755329797052,0.4936,4455.4,4454.1,1.45024602]
[1755329797247,1.20501247,4455.3,4455.2,0.0999]
[1755329797449,1.20501247,4455.3,4455.2,40.9617]
[1755329797450,0.11861247,4455.3,4455.2,40.9617]
[1755329797752,0.18,4456.2,4456.1,0.1617]
[1755329797947,0.18,4456.6,4456.2,0.0618]
[1755329798247,0.354,4456.7,4456.5,0.0999]
[1755329798443,0.354,4456.7,4455.8,0.44851]
[1755329798444,0.18,4456.7,4456.6,4.81974602]
[1755329798643,0.18,4457.6,4457.5,0.0988]
[1755329798847,0.29843051,4457.6,4457.5,0.0999]
[1755329799045,1.77733051,4457.6,4457.5,0.0999]
[1755329799351,1.6589,4457.6,4457.5,0.0988]
[1755329799550,1.6589,4457.6,4457.1,3.2078]
[1755329799748,2.92914602,4457.2,4457.1,3.2078]
[1755329799952,2.92914602,4457.2,4456.3,3.3066]
[1755329799953,0.5928,4456.4,4456.3,3.3066]
[1755329800145,1.4789,4456.4,4456.3,3.3066]
[1755329800448,3.2078,4457.4,4456.3,3.3066]
[1755329800449,0.6449,4457.3,4456.3,4.75794602]
[1755329800656,0.6654,4457.2,4457.1,0.0999]
[1755329800841,0.2412,4457.4,4457.1,0.1617]
[1755329801151,0.18,4457.6,4457.5,0.0999]
[1755329801547,0.4212,4457.6,4457.5,0.0999]
[1755329802052,0.18,4457.6,4457.5,0.1617]
[1755329802255,0.5928,4457.4,4456.6,3.2078]
[1755329802448,0.8861,4457.3,4456.6,3.3077]
[1755329802651,0.9853,4457.3,4457.2,0.0988]
[1755329802848,0.9853,4457.3,4456.6,3.2078]
[1755329803046,0.3925,4457.0,4456.6,3.2078]
[1755329803354,0.3925,4456.8,4456.6,3.2078]
[1755329803553,0.4936,4456.7,4456.6,3.2078]
[1755329803754,0.8861,4456.7,4456.6,3.2078]
[1755329804144,0.6337,4456.5,4456.1,3.2078]
[1755329804348,0.8861,4456.2,4456.1,3.2078]
[1755329804553,0.3925,4456.0,4455.5,3.2078]
[1755329804752,0.8861,4455.8,4455.0,3.2078]
[1755329804945,4.22712095,4455.6,4455.0,3.2078]
[1755329805149,0.8861,4455.5,4455.0,3.2078]
[1755329805345,0.4936,4455.3,4455.0,3.2078]
[1755329805550,4.22712095,4455.6,4454.5,3.2078]
[1755329805749,4.22712095,4455.1,4454.5,3.2078]
[1755329805950,0.6449,4455.5,4455.0,3.2078]
[1755329806259,0.8861,4455.8,4454.8,3.2078]
[1755329806553,0.11813429,4455.7,4454.8,3.2078]
[1755329806751,4.34525524,4455.6,4454.3,44.0078]
[1755329806946,4.22712095,4455.6,4454.3,44.0078]
[1755329807150,0.8861,4455.0,4454.3,44.0078]
[1755329807357,0.3925,4455.0,4454.3,44.0078]
[1755329807558,0.3925,4454.6,4454.3,3.2078]
[1755329807853,4.22712095,4455.1,4454.3,3.2078]
[1755329808250,0.4936,4454.8,4454.3,3.2078]
[1755329808454,0.3595,4454.7,4454.3,3.2078]
[1755329808650,0.2539,4454.6,4454.3,3.2078]
[1755329808857,0.6134,4454.4,4454.3,3.2078]
[1755329809048,0.8766,4454.4,4454.3,3.2078]
[1755329813666,0.8766,4454.5,4453.7,3.2078]
[1755329814160,4.22712095,4454.6,4453.7,3.2078]
[1755329814462,3.2078,4454.4,4453.7,3.2078]
[1755329814662,3.2078,4454.4,4453.7,2.9439]
[1755329814663,0.8766,4454.0,4453.7,2.9439]
[1755329814867,0.8766,4453.9,4453.0,3.2078]
[1755329815060,3.2078,4454.4,4453.0,3.2078]
[1755329815061,4.22712095,4453.6,4453.0,3.2078]
[1755329815361,0.8766,4453.3,4453.0,3.2078]
[1755329815557,7.43492095,4453.6,4453.0,3.2078]
[1755329815558,0.5171,4453.2,4453.0,3.2078]
[1755329815762,0.8766,4453.1,4453.0,3.2078]
[1755329815964,0.8766,4453.1,4453.0,3.4566]
[1755329816263,0.8766,4453.1,4453.0,3.2078]
[1755329817558,0.2539,4454.0,4453.1,0.2488]
[1755329817760,0.2632,4453.8,4453.1,0.2488]
[1755329817961,0.8766,4453.8,4453.1,0.2488]
[1755329818466,0.2539,4453.7,4453.1,0.2488]
[1755329819055,3.2078,4453.9,4453.1,0.2488]
[1755329819056,0.8766,4453.5,4453.1,0.2488]
[1755329819261,0.2539,4453.3,4453.0,3.2078]
[1755329819462,0.2539,4453.1,4453.0,3.2078]
[1755329819674,3.2078,4453.9,4453.0,3.2078]
[1755329819869,32.322,4454.4,4453.5,3.2078]
[1755329820168,32.322,4454.4,4451.7,1.12232]
[1755329820169,0.8766,4453.5,4452.9,3.2078]
[1755329820470,4.22712095,4453.5,4452.9,3.2078]
[1755329820673,0.8766,4453.8,4452.9,3.2078]
[1755329820876,4.84982095,4453.8,4452.9,3.2078]
[1755329821170,0.8766,4453.7,4452.9,3.2078]
[1755329821669,0.8766,4453.6,4452.9,3.2078]
[1755329822172,0.5171,4453.3,4452.9,3.2078]
[1755329822367,0.8766,4453.1,4452.9,3.2078]
[1755329822573,0.8766,4453.7,4452.9,3.4566]
[1755329822773,0.8766,4453.5,4452.9,3.4566]
[1755329822969,4.22712095,4453.8,4452.9,3.4566]
[1755329823166,0.8766,4453.4,4452.9,3.4566]
[1755329823471,0.6227,4453.2,4452.9,3.4566]
[1755329823672,0.2539,4453.1,4452.9,3.4566]
[1755329823971,0.8766,4453.0,4452.9,3.2078]
[1755329825274,7.43492095,4453.3,4452.1,0.10107476]
[1755329825575,5.10372095,4452.2,4452.1,0.10107476]
[1755329825977,0.2539,4452.0,4451.3,3.2078]
[1755329826173,7.43492095,4452.2,4451.3,3.2078]
[1755329826374,0.8766,4451.9,4451.3,3.2078]
[1755329826574,0.8766,4452.1,4451.3,3.2078]
[1755329826976,0.8766,4452.0,4451.3,3.2078]
[1755329827175,7.43492095,4452.2,4451.3,3.2078]
[1755329827176,0.6227,4451.7,4451.3,3.5571]
[1755329827377,0.8766,4451.6,4451.3,3.5571]
[1755329827580,0.8766,4452.1,4451.3,3.5571]
[1755329827779,0.2539,4451.9,4451.3,3.2078]
[1755329827980,0.6227,4452.0,4451.5,0.1005]
[1755329828175,0.5171,4451.9,4451.6,0.2488]
[1755329828386,0.5171,4451.8,4451.5,0.3493]
[1755329828678,3.2078,4452.2,4451.6,0.3493]
[1755329828883,0.2539,4452.5,4452.2,0.4102]
[1755329829089,0.2539,4453.0,4452.4,0.2488]
[1755329829377,0.3595,4453.3,4452.5,0.1005]
[1755329829583,0.2539,4452.9,4452.7,0.3493]
[1755329829772,0.2539,4452.9,4452.8,0.3493]
[1755329830377,0.2539,4453.5,4452.7,0.4102]
[1755329830581,0.3539,4453.2,4452.9,0.1614]
[1755329830776,0.1,4453.2,4453.1,0.4102]
[1755329830972,0.2632,4454.1,4453.2,0.3097]
[1755329831178,0.3595,4454.3,4453.8,0.2488]
[1755329831479,3.2078,4455.0,4453.8,0.2488]
[1755329831674,0.2539,4454.8,4454.0,0.2488]
[1755329831978,0.2539,4454.8,4454.0,41.0488]
[1755329832183,0.2539,4454.8,4454.1,0.2488]
[1755329832371,3.2078,4455.0,4454.1,0.2488]
[1755329832572,0.2539,4455.0,4454.2,3.2078]
[1755329832772,4.22712095,4455.4,4454.3,0.2488]
[1755329832976,0.4339,4454.9,4454.3,0.2488]
[1755329833179,0.6971,4454.9,4454.3,0.2488]
[1755329833380,0.6971,4454.9,4454.2,3.2078]
[1755329833381,0.18,4454.9,4454.2,3.2078]
[1755329833581,0.8766,4454.8,4454.2,3.4566]
[1755329833779,0.2539,4454.7,4454.2,3.2078]
[1755329833979,0.8766,4454.8,4454.2,3.2078]
[1755329834184,0.2539,4454.7,4454.2,3.2078]
[1755329834377,0.2539,4454.5,4454.3,0.2488]
[1755329834578,4.40712095,4454.9,4454.4,0.2488]
[1755329834778,0.8766,4454.7,4454.5,0.2488]
[1755329834976,0.18,4454.9,4454.3,0.2488]
[1755329835177,0.18,4454.9,4454.8,0.2488]
[1755329835583,0.4339,4454.9,4454.8,0.2488]
[1755329836184,0.18,4454.9,4454.8,0.3097]
[1755329836387,0.4339,4455.5,4454.8,0.3097]
[1755329836582,0.3595,4455.4,4454.8,0.2488]
[1755329836884,4.40712095,4455.5,4454.7,3.2078]
[1755329837075,0.8766,4455.4,4454.7,3.2078]
[1755329837279,4.40712095,4455.5,4454.7,3.2078]
[1755329837479,0.8766,4455.3,4454.7,3.2078]
[1755329837679,0.8766,4455.4,4454.7,3.2078]
[1755329837876,0.8766,4455.3,4454.4,0.2488]
[1755329838181,4.22712095,4455.0,4454.4,0.2488]
[1755329838382,0.897,4454.8,4454.5,0.2636]
[1755329838677,0.2626,4454.6,4454.5,0.2636]
[1755329839882,0.5016,4454.6,4454.5,0.2636]
[1755329840084,0.897,4454.6,4454.5,0.2636]
[1755329841384,0.897,4454.6,4454.1,3.2078]
[1755329841586,4.22712095,4455.0,4454.2,0.2636]
[1755329841587,0.897,4454.5,4454.2,0.2636]
[1755329841787,0.2626,4454.3,4454.1,3.2078]
[1755329842081,4.22712095,4454.5,4454.1,3.2078]
[1755329842286,0.2626,4454.4,4454.1,3.2078]
[1755329842589,0.897,4454.2,4454.1,3.2078]
[1755329843683,0.5016,4454.2,4454.1,3.4714]
[1755329843883,0.2626,4454.2,4454.1,3.4714]
[1755329844282,0.2626,4454.4,4454.2,0.2633]
[1755329844687,4.62252095,4454.5,4454.4,0.0012]
[1755329844883,0.3954,4455.0,4454.4,0.2633]
[1755329845091,0.2626,4454.9,4454.4,0.2621]
[1755329845285,0.239,4455.2,4454.6,0.2621]
[1755329845488,4.22712095,4454.9,4454.6,0.2621]
[1755329845684,0.6344,4454.7,4454.6,0.2633]
[1755329845988,0.5016,4454.7,4454.6,0.2633]
[1755329846490,0.6676,4454.7,4454.6,0.523]
[1755329846791,0.9201,4454.7,4454.6,0.523]
[1755329846993,1.3155,4454.7,4454.6,0.523]
[1755329847689,0.8553,4455.4,4455.3,0.1596]
[1755329847893,1.4897,4455.4,4454.9,0.2633]
[1755329848083,0.8553,4455.1,4455.0,0.1596]
[1755329848282,1.4897,4455.1,4455.0,0.1608]
[1755329848689,0.5927,4455.1,4454.7,0.2633]
[1755329848992,0.5927,4454.8,4454.7,0.5211]
[1755329849194,1.4897,4454.8,4454.7,0.523]
[1755329849590,0.4185,4454.8,4454.7,0.523]
[1755329849792,0.9201,4454.8,4454.7,0.523]
[1755329849995,0.2626,4454.8,4454.7,0.523]
[1755329850193,0.4286,4454.8,4454.7,0.523]
[1755329850488,1.4897,4454.8,4454.7,0.523]
[1755329850693,0.897,4455.4,4454.7,0.5218]
[1755329850891,0.8553,4455.3,4455.2,0.1596]
[1755329851089,1.4897,4455.3,4455.2,0.5211]
[1755329853087,1.4897,4455.3,4455.2,0.259]
[1755329853287,1.4897,4455.3,4455.2,0.2578]
[1755329853791,1.4897,4455.3,4454.8,0.2633]
[1755329853994,1.4897,4454.7,4454.6,3.2078]
[1755329854395,1.4897,4454.7,4454.0,3.4711]
[1755329854590,0.4185,4454.2,4454.1,0.523]
[1755329854899,1.4897,4454.2,4454.1,0.523]
[1755329856294,3.2078,4455.0,4454.1,0.523]
[1755329856295,0.2626,4454.9,4454.2,0.2621]
[1755329856489,1.4897,4454.9,4454.8,0.5211]
[1755329856899,1.4897,4454.9,4454.8,0.259]
[1755329857101,1.60549993,4454.9,4454.8,0.2578]
[1755329857293,1.60549993,4454.9,4454.8,0.1596]
[1755329858195,1.81189642,4454.9,4454.8,0.1596]
[1755329858396,0.9881,4454.1,4454.0,3.4675]
[1755329858696,0.2626,4454.1,4454.0,3.2078]
[1755329858895,1.4897,4454.1,4454.0,3.2078]
[1755329859096,1.4897,4454.1,4454.0,3.7308]
[1755329859296,1.0943,4454.1,4454.0,3.7308]
[1755329859496,1.4897,4454.1,4454.0,3.2078]
[1755329860097,1.81256458,4454.1,4454.0,3.2078]
[1755329860795,0.32286458,4454.1,4454.0,3.7308]
[1755329861097,0.2626,4454.5,4454.0,3.791]
[1755329861303,0.37879323,4454.4,4454.3,0.523]
[1755329862099,0.6676,4454.7,4454.6,0.0982]
[1755329862404,1.03628146,4454.7,4454.6,3.7308]
[1755329863202,0.3954,4455.3,4454.6,3.4675]
[1755329863397,0.2626,4454.9,4454.8,0.523]
[1755329863594,0.37877294,4454.9,4454.8,0.523]
[1755329863792,1.60587294,4454.9,4454.8,0.523]
[1755329864902,1.21047294,4454.9,4454.8,0.523]
[1755329865099,1.60587294,4454.9,4454.8,0.523]
[1755329865306,1.60587294,4454.9,4454.8,0.1596]
[1755329865606,1.4897,4454.7,4454.6,3.2078]
[1755329865994,1.60588399,4454.7,4454.6,3.2078]
[1755329869405,1.36688399,4454.7,4454.6,3.729]
[1755329869703,0.53838399,4454.7,4454.6,3.7301]
[1755329870005,0.11618399,4454.7,4454.6,3.7914]
[1755329870502,0.4188,4455.5,4455.3,0.2484]
[1755329870700,0.4188,4455.5,4455.4,3.7301]
[1755329870900,0.53495045,4455.5,4455.4,3.7301]
[1755329872200,0.29615045,4455.5,4455.4,3.7301]
[1755329872403,0.18,4455.5,4455.4,3.7914]
[1755329873599,3.2078,4457.6,4455.7,0.1463]
[1755329873799,1.7577277,4457.5,4456.7,3.3541]
[1755329874003,0.407,4456.8,4456.7,3.2078]
[1755329874208,0.407,4456.8,4455.9,40.8]
[1755329874209,0.8687,4456.7,4456.5,3.2078]
[1755329874506,1.4359,4456.6,4456.5,3.2078]
[1755329874707,0.2388,4456.6,4456.5,3.5281]
[1755329876010,0.6473,4456.6,4456.5,3.5281]
[1755329876199,0.8947,4456.6,4456.5,3.2078]
[1755329876399,1.4359,4456.6,4456.5,3.3818]
[1755329876604,1.4359,4456.6,4456.5,3.5281]
[1755329877101,1.0549,4456.6,4456.5,3.5281]
[1755329877609,0.2388,4456.6,4456.5,3.5281]
[1755329877809,0.4877,4457.5,4456.6,0.1463]
[1755329878012,0.407,4457.1,4457.0,3.3818]
[1755329878210,1.55262439,4457.1,4457.0,3.2078]
[1755329878604,1.55262439,4457.1,4456.5,3.2078]
[1755329878805,1.4359,4456.6,4456.5,3.2078]
[1755329879005,1.4359,4456.6,4456.5,3.8243]
[1755329879411,1.4359,4456.6,4456.5,3.9983]
[1755329879605,1.4359,4456.6,4456.5,4.1446]
[1755329879805,1.0549,4456.6,4456.5,4.1446]
[1755329880603,0.381,4457.4,4456.5,3.6297]
[1755329880806,0.806,4457.3,4457.2,0.4219]
[1755329881112,0.806,4457.3,4457.2,0.9368]
[1755329881317,1.0549,4457.3,4457.2,0.9368]
[1755329881505,1.4359,4457.3,4457.2,0.9368]
[1755329881812,0.1596,4457.3,4457.2,0.7905]
[1755329882009,1.0549,4457.3,4457.2,0.9368]
[1755329882312,1.4359,4457.3,4457.2,0.9368]
[1755329884008,1.4359,4457.3,4457.2,0.7905]
[1755329884915,1.4359,4457.3,4457.2,0.9368]
[1755329886214,0.2388,4457.7,4457.2,0.9368]
[1755329886415,0.5687,4457.7,4457.6,0.9368]
[1755329886608,0.8161,4457.7,4457.6,0.9368]
[1755329886808,1.0549,4457.7,4457.6,0.9368]
[1755329887215,1.4359,4457.7,4457.6,0.4219]
[1755329887415,1.4359,4457.7,4457.5,3.2078]
[1755329887712,1.4359,4457.6,4457.5,3.2078]
[1755329891015,0.5672,4457.6,4457.0,3.5764]
[1755329891215,0.5672,4457.1,4457.0,3.776]
[1755329891416,1.0549,4457.1,4457.0,3.776]
[1755329891917,1.4359,4457.1,4457.0,4.1446]
[1755329892909,1.4359,4457.1,4457.0,3.9983]
[1755329893115,1.4359,4457.1,4457.0,3.4557]
[1755329895416,0.1602,4456.6,4456.5,3.2078]
[1755329895616,0.381,4456.5,4455.7,3.5764]
[1755329895814,4.22712095,4456.9,4455.7,4.1446]
[1755329895815,1.4359,4455.8,4455.7,4.1446]
[1755329896011,0.2388,4455.8,4455.7,4.1446]
[1755329896210,1.4359,4455.9,4455.7,3.2078]
[1755329896818,1.4359,4455.6,4455.5,0.9368]
[1755329897220,1.0549,4455.6,4455.5,0.9368]
[1755329897420,0.2388,4455.4,4454.0,2.01012317]
[1755329897613,0.2388,4455.2,4455.1,0.2479]
[1755329897814,0.8161,4456.0,4455.9,0.2479]
[1755329898014,0.8161,4456.0,4455.9,0.9368]
[1755329898220,1.1971,4456.0,4455.9,0.7905]
[1755329898423,1.4555,4456.0,4455.9,0.7905]
[1755329898929,1.4483,4456.0,4455.9,0.9368]
[1755329899530,0.2417,4456.5,4456.0,0.5394]
[1755329899722,0.2417,4456.5,4455.5,4.22712095]